fUSD/lending_fUSD_20250507
["ID","MTS","AMOUNT","RATE_DAILY","PERIOD"]
[360235747,1746645043674,-2402.15,0.00019999,2]
[360235748,1746645043684,-2402.15,0.00019999,2]
[360235749,1746645043695,-2402.15,0.00019999,2]
[360235750,1746645043705,-2402.15,0.00019999,2]
[360235751,1746645043715,-2402.15,0.00019999,2]
[360235752,1746645043725,-2402.15,0.00019999,2]
[360235753,1746645043737,-2402.15,0.00019999,2]
[360235754,1746645043749,-2402.15,0.00019999,2]
[360235755,1746645043759,-2402.25,0.00019999,2]
[360235756,1746645043770,-450.0,0.00019999,2]
[360235757,1746645043780,-796.29,0.00019999,2]
[360235758,1746645043790,-796.29,0.00019999,2]
[360235759,1746645043799,-796.29,0.00019999,2]
[360235760,1746645043809,-796.29,0.00019999,2]
[360235761,1746645043819,-796.29,0.00019999,2]
[360235762,1746645043828,-796.29,0.00019999,2]
[360235763,1746645043838,-796.29,0.00019999,2]
[360235764,1746645043848,-796.29,0.00019999,2]
[360235765,1746645043858,-796.29,0.00019999,2]
[360235766,1746645043867,-450.0,0.00019999,2]
[360235767,1746645043877,-796.29,0.00019999,2]
[360235768,1746645043887,-450.0,0.00019999,2]
[360235769,1746645043897,-796.29,0.00019999,2]
[360235770,1746645043907,-796.29,0.00019999,2]
[360235771,1746645043916,-796.29,0.00019999,2]
[360235772,1746645043926,-796.29,0.00019999,2]
[360235773,1746645043935,-796.29,0.00019999,2]
[360235774,1746645043945,-796.29,0.00019999,2]
[360235775,1746645043955,-796.29,0.00019999,2]
[360235776,1746645043965,-796.29,0.00019999,2]
[360235777,1746645043975,-796.29,0.00019999,2]
[360235778,1746645043985,-796.29,0.00019999,2]
[360235779,1746645043994,-796.29,0.00019999,2]
[360235780,1746645044004,-796.29,0.00019999,2]
[360235781,1746645044014,-796.33,0.00019999,2]
[360235782,1746645044023,-450.0,0.00019999,2]
[360235783,1746645044033,-450.0,0.00019999,2]
[360235784,1746645044043,-450.0,0.00019999,2]
[360235785,1746645044052,-450.0,0.00019999,2]
[360235786,1746645044062,-450.0,0.00019999,2]
[360235787,1746645044072,-450.0,0.00019999,2]
[360235788,1746645044082,-276.15,0.00019999,2]
[360235789,1746645044091,-525.74,0.00019999,2]
[360235790,1746645044101,-450.0,0.00019999,2]
[360235791,1746645044111,-10.14289844,0.00019999,2]
[360235792,1746645044150,-450.0,0.00019998,2]
[360235793,1746645044160,-439.85710156,0.00019999,2]
[360235794,1746645044170,-450.0,0.00019999,2]
[360235795,1746645044179,-158.32,0.00019999,2]
[360235796,1746645044189,-450.0,0.00019999,2]
[360235797,1746645044200,-450.0,0.00019999,2]
[360235798,1746645044209,-539.42181154,0.00019999,2]
[360235799,1746645044219,-565.39,0.00019999,2]
[360235800,1746645044228,-27.5510869,0.00019999,2]
[360235801,1746645044246,-450.61165606,0.00019997,2]
[360235802,1746645044256,-422.4489131,0.00019999,2]
[360235803,1746645044265,-450.0,0.00019999,2]
[360235804,1746645044275,-172.57,0.00019999,2]
[360235805,1746645044284,-450.0,0.00019999,2]
[360235806,1746645044294,-450.0,0.00019999,2]
[360235807,1746645044303,-450.0,0.00019999,2]
[360235808,1746645044313,-450.0,0.00019999,2]
[360235809,1746645044322,-450.0,0.00019999,2]
[360235810,1746645044332,-460.46,0.00019999,2]
[360235811,1746645044342,-450.0,0.00019999,2]
[360235812,1746645044352,-450.0,0.00019999,2]
[360235813,1746645044362,-450.0,0.00019999,2]
[360235814,1746645044371,-227.91361719,0.00019999,2]
[360235815,1746645044381,-450.0,0.00019999,2]
[360235816,1746645044390,-450.0,0.00019999,2]
[360235817,1746645044400,-450.0,0.00019999,2]
[360235818,1746645044409,-450.0,0.00019999,2]
[360235819,1746645044419,-445.45,0.00019999,2]
[360235820,1746645044428,-450.0,0.00019999,2]
[360235821,1746645044438,-450.0,0.00019999,2]
[360235822,1746645044448,-384.04,0.00019999,2]
[360235823,1746645044459,-450.0,0.00019999,2]
[360235824,1746645044468,-478.6,0.00019999,2]
[360235825,1746645044481,-430.11,0.00019999,2]
[360235826,1746645044494,-450.0,0.00019999,2]
[360235827,1746645044503,-450.0,0.00019999,2]
[360235828,1746645044513,-450.0,0.00019999,2]
[360235829,1746645044523,-450.0,0.00019999,2]
[360235830,1746645044532,-450.0,0.00019999,2]
[360235831,1746645044541,-450.0,0.00019999,2]
[360235832,1746645044550,-450.0,0.00019999,2]
[360235833,1746645044560,-450.0,0.00019999,2]
[360235834,1746645044569,-450.0,0.00019999,2]
[360235835,1746645044579,-450.0,0.00019999,2]
[360235836,1746645044588,-450.0,0.00019999,2]
[360235837,1746645044598,-450.0,0.00019999,2]
[360235838,1746645044608,-1607.7,0.00019999,2]
[360235839,1746645044618,-1607.7,0.00019999,2]
[360235840,1746645044627,-1607.7,0.00019999,2]
[360235841,1746645044637,-1607.7,0.00019999,2]
[360235842,1746645044647,-1607.7,0.00019999,2]
[360235843,1746645044656,-1607.7,0.00019999,2]
[360235844,1746645044666,-1607.7,0.00019999,2]
[360235845,1746645044676,-1607.7,0.00019999,2]
[360235846,1746645044686,-1607.7,0.00019999,2]
[360235847,1746645044696,-1607.7,0.00019999,2]
[360235848,1746645044706,-1607.7,0.00019999,2]
[360235849,1746645044716,-1607.7,0.00019999,2]
[360235850,1746645044726,-1607.7,0.00019999,2]
[360235851,1746645044736,-1607.7,0.00019999,2]
[360235852,1746645044746,-1607.7,0.00019999,2]
[360235853,1746645044756,-450.0,0.00019999,2]
[360235854,1746645044766,-1607.7,0.00019999,2]
[360235855,1746645044776,-1607.7,0.00019999,2]
[360235856,1746645044786,-1607.7,0.00019999,2]
[360235857,1746645044795,-1607.7,0.00019999,2]
[360235858,1746645044806,-1607.7,0.00019999,2]
[360235859,1746645044816,-450.0,0.00019999,2]
[360235860,1746645044827,-1607.7,0.00019999,2]
[360235861,1746645044836,-1607.7,0.00019999,2]
[360235862,1746645044846,-1607.83975249,0.00019999,2]
[360235863,1746645044856,-450.0,0.00019999,2]
[360235864,1746645044865,-450.0,0.00019999,2]
[360235865,1746645044875,-450.0,0.00019999,2]
[360235866,1746645044885,-450.0,0.00019999,2]
[360235867,1746645044895,-450.0,0.00019999,2]
[360235868,1746645044906,-450.0,0.00019999,2]
[360235869,1746645044916,-450.0,0.00019999,2]
[360235870,1746645044925,-450.0,0.00019999,2]
[360235871,1746645044935,-450.0,0.00019999,2]
[360235872,1746645044945,-450.0,0.00019999,2]
[360235873,1746645044955,-450.0,0.00019999,2]
[360235874,1746645044965,-450.0,0.00019999,2]
[360235875,1746645044975,-450.0,0.00019999,2]
[360235876,1746645044985,-450.0,0.00019999,2]
[360235877,1746645044995,-450.0,0.00019999,2]
[360235878,1746645045004,-450.0,0.00019999,2]
[360235879,1746645045014,-450.0,0.00019999,2]
[360235880,1746645045024,-450.0,0.00019999,2]
[360235881,1746645045034,-450.0,0.00019999,2]
[360235882,1746645045045,-450.0,0.00019999,2]
[360235883,1746645045056,-450.0,0.00019999,2]
[360235884,1746645045068,-450.0,0.00019999,2]
[360235885,1746645045080,-450.0,0.00019999,2]
[360235886,1746645045091,-450.0,0.00019999,2]
[360235887,1746645045103,-283.5,0.00019999,2]
[360235888,1746645045114,-450.0,0.00019999,2]
[360235889,1746645045126,-450.0,0.00019999,2]
[360235890,1746645045137,-450.0,0.00019999,2]
[360235891,1746645045148,-450.0,0.00019999,2]
[360235892,1746645045159,-290.61733257,0.00019999,2]
[360235893,1746645045171,-450.0,0.00019999,2]
[360235894,1746645045180,-450.0,0.00019999,2]
[360235895,1746645045192,-450.0,0.00019999,2]
[360235896,1746645045205,-450.0,0.00019999,2]
[360235897,1746645045217,-450.0,0.00019999,2]
[360235898,1746645045228,-450.0,0.00019999,2]
[360235899,1746645045239,-450.0,0.00019999,2]
[360235900,1746645045249,-450.0,0.00019999,2]
[360235901,1746645045259,-450.0,0.00019999,2]
[360235902,1746645045270,-450.0,0.00019999,2]
[360235903,1746645045280,-450.0,0.00019999,2]
[360235904,1746645045292,-450.0,0.00019999,2]
[360235905,1746645045304,-450.0,0.00019999,2]
[360235906,1746645045314,-450.0,0.00019999,2]
[360235907,1746645045324,-450.0,0.00019999,2]
[360235908,1746645045334,-151.23,0.00019999,2]
[360235909,1746645045344,-450.0,0.00019999,2]
[360235910,1746645045354,-345.27,0.00019999,2]
[360235911,1746645045364,-730.62,0.00019999,2]
[360235912,1746645045374,-493.55095808,0.00019999,2]
[360235913,1746645045652,-450.0,0.00019997,2]
[360235914,1746645045663,-401.22372094,0.00019998,2]
[360235915,1746645045676,-48.77627906,0.00019998,2]
[360235916,1746645045686,-450.0,0.00019998,2]
[360235917,1746645045697,-450.0,0.00019998,2]
[360235918,1746645045707,-237.06904192,0.00019999,2]
[360235919,1746645045716,-730.62,0.00019999,2]
[360235920,1746645045726,-730.62,0.00019999,2]
[360235921,1746645045736,-730.62,0.00019999,2]
[360235922,1746645045747,-730.62,0.00019999,2]
[360235923,1746645045757,-730.62,0.00019999,2]
[360235924,1746645045768,-730.62,0.00019999,2]
[360235925,1746645045778,-730.62,0.00019999,2]
[360235926,1746645045788,-450.0,0.00019999,2]
[360235927,1746645045798,-730.62,0.00019999,2]
[360235928,1746645045808,-730.62,0.00019999,2]
[360235929,1746645045818,-730.62,0.00019999,2]
[360235930,1746645045828,-730.62,0.00019999,2]
[360235931,1746645045838,-730.62,0.00019999,2]
[360235932,1746645045847,-730.62,0.00019999,2]
[360235933,1746645045857,-730.62,0.00019999,2]
[360235934,1746645045867,-730.62,0.00019999,2]
[360235935,1746645045877,-31.63901503,0.00019999,2]
[360235936,1746645045890,-698.98098497,0.00019999,2]
[360235937,1746645045899,-730.62,0.00019999,2]
[360235938,1746645045910,-730.62,0.00019999,2]
[360235939,1746645045921,-730.62,0.00019999,2]
[360235940,1746645045931,-730.79,0.00019999,2]
[360235941,1746645045941,-573.55714688,0.00019999,2]
[360235942,1746645045952,-450.0,0.00019999,2]
[360235943,1746645045963,-453.06195001,0.00019999,2]
[360235944,1746645045973,-499.63,0.00019999,2]
[360235945,1746645045985,-499.63,0.00019999,2]
[360235946,1746645045995,-499.63,0.00019999,2]
[360235947,1746645046066,-499.63,0.00019999,2]
[360235948,1746645046076,-450.0,0.00019999,2]
[360235949,1746645046085,-499.63,0.00019999,2]
[360235950,1746645046095,-553.36200781,0.00019999,2]
[360235951,1746645046105,-499.63,0.00019999,2]
[360235952,1746645046114,-499.63,0.00019999,2]
[360235953,1746645046126,-499.63,0.00019999,2]
[360235954,1746645046136,-499.63,0.00019999,2]
[360235955,1746645046146,-499.63,0.00019999,2]
[360235956,1746645046156,-499.63,0.00019999,2]
[360235957,1746645046167,-499.63,0.00019999,2]
[360235958,1746645046177,-499.63,0.00019999,2]
[360235959,1746645046187,-499.63,0.00019999,2]
[360235960,1746645046197,-499.63,0.00019999,2]
[360235961,1746645046207,-499.63,0.00019999,2]
[360235962,1746645046218,-499.63,0.00019999,2]
[360235963,1746645046229,-499.63,0.00019999,2]
[360235964,1746645046240,-499.63,0.00019999,2]
[360235965,1746645046250,-499.63,0.00019999,2]
[360235966,1746645046261,-499.63,0.00019999,2]
[360235967,1746645046272,-499.82002235,0.00019999,2]
[360235968,1746645046282,-274.33482507,0.00019999,2]
[360235969,1746645046293,-450.0,0.00019999,2]
[360235970,1746645046304,-525.64037437,0.00019999,2]
[360235971,1746645046315,-150.0,0.00019999,2]
[360235972,1746645046326,-917.0,0.0002,2]
[360235973,1746645046337,-24444.29290479,0.0002,2]
[360235974,1746645046442,-2458.54353446,0.000199,2]
[360235975,1746645046459,-499.96361928,0.000199,2]
[360235976,1746645046468,-450.0,0.00019998,2]
[360235977,1746645046478,-2666.43638066,0.0002,2]
[360235978,1746645116074,150.0,0.0001932,7]
[360235979,1746645175363,12060.33209668,0.0003,30]
[360235980,1746645195094,158.65576755,0.0003,30]
[360235981,1746645196267,154.47895371,0.0003,30]
[360235982,1746645222020,150.0,0.000195,2]
[360235983,1746645264634,150.0,0.0003,30]
[360235984,1746645268854,150.0,0.0003,30]
[360235985,1746645270306,150.0,0.0003,30]
[360235986,1746645305542,164.35,0.00019079,2]
[360235987,1746645376131,156.93,0.00018983,2]
[360235988,1746645441485,680.98,0.00017022,2]
[360235989,1746645441714,680.98,0.00019286,2]
[360235990,1746645468932,-189.13883075,0.000195,2]
[360235991,1746645543092,1000.0,0.00018935,2]
[360235992,1746645757231,250.0,0.00018931,2]
[360235993,1746645861769,2180.66815635,0.0003,34]
[360235994,1746645997422,207.9,0.00018928,2]
[360235995,1746646080776,600.0,0.00019499,2]
[360235996,1746646081413,300.0,0.00019499,2]
[360235997,1746646121865,449.999999,0.000151,2]
[360236000,1746646141869,300.0,0.00019499,2]
[360236001,1746646149059,6935.0,0.0003,120]
[360236002,1746646201371,1200.0,0.00019499,2]
[360236003,1746646219303,300.0,0.00019499,2]
[360236012,1746646231554,-10.29116925,0.000195,2]
[360236014,1746646231566,-217.21750132,0.000195,2]
[360236016,1746646231579,-155.0,0.000195,2]
[360236017,1746646231590,-151.0,0.000195,2]
[360236018,1746646231602,-207.4,0.000195,2]
[360236019,1746646231611,-151.0,0.000195,2]
[360236020,1746646231627,-668.65185757,0.000195,2]
[360236021,1746646231637,-44.81177187,0.000195,2]
[360236022,1746646231660,-106.18822813,0.000195,2]
[360236023,1746646231671,-200.0,0.00019577,2]
[360236024,1746646231681,-123.62663678,0.00019577,2]
[360236025,1746646231791,-126.37336322,0.00019577,2]
[360236026,1746646231802,-200.0,0.00019661,2]
[360236027,1746646231813,-1048.91,0.00019699,2]
[360236028,1746646231824,-2417.02243402,0.000197,2]
[360236032,1746646232207,150.0,0.00018986,7]
[360236036,1746646237703,-1564.5261522,0.000197,2]
[360236037,1746646237755,-2311.55141378,0.000197,2]
[360236038,1746646237766,-166.63,0.0001975,2]
[360236039,1746646237777,-799.25930071,0.00019783,2]
[360236040,1746646237788,-115.90299245,0.00019838,2]
[360236123,1746646239766,-19969.39888244,0.00019838,2]
[360236124,1746646239777,-51820.70590872,0.00019839,2]
[360236125,1746646239787,-500.0,0.0001984,2]
[360236126,1746646239798,-2000.0,0.0001984,2]
[360236127,1746646239808,-500.0,0.0001984,2]
[360236128,1746646239818,-200.0,0.0001984,2]
[360236129,1746646239828,-1000.0,0.00019871,2]
[360236130,1746646239838,-400.96451374,0.00019873,2]
[360236131,1746646239848,-500.0,0.00019873,2]
[360236132,1746646239858,-500.0,0.00019873,2]
[360236133,1746646239868,-162.08008808,0.00019873,2]
[360236134,1746646239878,-500.0,0.00019873,2]
[360236135,1746646239889,-264.58071597,0.00019873,2]
[360236136,1746646239899,-1709.27570438,0.00019898,2]
[360236137,1746646239910,-207.1189121,0.00019898,2]
[360236138,1746646239921,-2518.7016,0.00019898,2]
[360236139,1746646239930,-860.5632,0.00019898,2]
[360236140,1746646239940,-1832.424,0.00019898,2]
[360236141,1746646239951,-500.0,0.00019898,2]
[360236142,1746646239961,-500.0,0.00019898,2]
[360236143,1746646239971,-500.0,0.00019898,2]
[360236144,1746646239981,-282.30968468,0.00019898,2]
[360236145,1746646239990,-310.41351274,0.00019898,2]
[360236146,1746646240000,-500.0,0.00019898,2]
[360236147,1746646240011,-500.0,0.00019898,2]
[360236148,1746646240021,-500.0,0.00019898,2]
[360236149,1746646240031,-500.0,0.00019898,2]
[360236150,1746646240042,-500.0,0.00019898,2]
[360236151,1746646240052,-500.0,0.00019898,2]
[360236152,1746646240062,-500.0,0.00019898,2]
[360236153,1746646240072,-500.0,0.00019898,2]
[360236154,1746646240082,-500.0,0.00019898,2]
[360236155,1746646240092,-500.0,0.00019898,2]
[360236156,1746646240102,-500.0,0.00019898,2]
[360236157,1746646240112,-615.08663671,0.00019898,2]
[360236158,1746646240123,-500.0,0.00019898,2]
[360236159,1746646240133,-500.0,0.00019898,2]
[360236160,1746646240143,-500.0,0.00019898,2]
[360236161,1746646240152,-500.0,0.00019898,2]
[360236162,1746646240163,-500.0,0.00019898,2]
[360236163,1746646240173,-500.0,0.00019898,2]
[360236164,1746646240183,-500.0,0.00019898,2]
[360236165,1746646240192,-500.0,0.00019898,2]
[360236166,1746646240204,-500.0,0.00019898,2]
[360236167,1746646240215,-1709.2757043,0.00019898,2]
[360236168,1746646240224,-207.11891207,0.00019898,2]
[360236169,1746646240234,-1709.2757043,0.00019898,2]
[360236170,1746646240244,-207.11891207,0.00019899,2]
[360236171,1746646240255,-1709.2757043,0.00019899,2]
[360236172,1746646240264,-207.11891207,0.00019899,2]
[360236173,1746646240274,-1709.2757043,0.00019899,2]
[360236174,1746646240284,-161.7485,0.00019899,2]
[360236175,1746646240295,-5000.0,0.00019899,2]
[360236176,1746646240305,-597.86417294,0.00019899,2]
[360236178,1746646240315,-1709.2757043,0.00019899,2]
[360236180,1746646240325,-597.86417286,0.00019899,2]
[360236182,1746646240334,-207.11891207,0.00019899,2]
[360236184,1746646240344,-597.86417286,0.00019899,2]
[360236186,1746646240354,-1709.2757043,0.00019899,2]
[360236188,1746646240363,-597.86417286,0.00019899,2]
[360236190,1746646240373,-207.11891207,0.00019899,2]
[360236191,1746646240383,-597.86417286,0.00019899,2]
[360236192,1746646240392,-1709.2757043,0.000199,2]
[360236193,1746646240401,-597.86417286,0.000199,2]
[360236194,1746646240411,-597.86417286,0.000199,2]
[360236195,1746646240422,-207.11891207,0.000199,2]
[360236196,1746646240431,-1709.2757043,0.000199,2]
[360236197,1746646240441,-597.86417286,0.000199,2]
[360236198,1746646240452,-597.86417286,0.000199,2]
[360236199,1746646240462,-1148.5440112,0.000199,2]
[360236200,1746646240472,-184.04854354,0.000199,2]
[360236201,1746646240481,-1709.2757043,0.000199,2]
[360236202,1746646240491,-213.98582436,0.000199,2]
[360236203,1746646240503,-2859.89024848,0.000199,2]
[360236204,1746646240513,-597.86417286,0.000199,2]
[360236205,1746646240523,-154.24450196,0.000199,2]
[360236206,1746646240533,-155.04735946,0.000199,2]
[360236207,1746646240543,-221.37638303,0.000199,3]
[360236208,1746646240556,-200.145017,0.000199,2]
[360236209,1746646240567,-361.86007004,0.000199,2]
[360236210,1746646240579,-500.0,0.00019973,2]
[360236211,1746646240591,-502.08209674,0.00019973,2]
[360236212,1746646240600,-501.02155493,0.00019973,2]
[360236213,1746646240610,-2342.0,0.00019973,2]
[360236214,1746646240620,-500.0,0.00019973,2]
[360236215,1746646240630,-500.0,0.00019973,2]
[360236216,1746646240640,-500.0,0.00019973,2]
[360236217,1746646240649,-500.0,0.00019973,2]
[360236218,1746646240659,-500.0,0.00019973,2]
[360236219,1746646240668,-1000.0,0.00019975,2]
[360236220,1746646240678,-1000.0,0.00019982,2]
[360236221,1746646240687,-1191.751,0.00019984,2]
[360236222,1746646240699,-210.6414965,0.00019986,2]
[360236223,1746646240709,-216.0776439,0.00019986,2]
[360236224,1746646240719,-525.93531,0.00019986,2]
[360236225,1746646240729,-3297.8564773,0.00019986,2]
[360236226,1746646240739,-447.23,0.00019988,2]
[360236227,1746646240749,-1000.0,0.00019992,2]
[360236228,1746646240759,-450.0,0.00019997,2]
[360236229,1746646240769,-450.0,0.00019997,2]
[360236230,1746646240779,-541.3,0.00019997,2]
[360236231,1746646240789,-495.24364102,0.00019997,2]
[360236232,1746646241020,-450.0,0.00019997,2]
[360236233,1746646241031,-450.0,0.00019997,2]
[360236234,1746646241041,-450.0,0.00019997,2]
[360236235,1746646241052,-450.0,0.00019997,2]
[360236236,1746646241062,-450.0,0.00019997,2]
[360236237,1746646241072,-450.0,0.00019997,2]
[360236238,1746646241082,-450.0,0.00019997,2]
[360236239,1746646241092,-450.0,0.00019997,2]
[360236240,1746646241102,-450.0,0.00019997,2]
[360236241,1746646241111,-450.0,0.00019997,2]
[360236242,1746646241122,-450.0,0.00019997,2]
[360236243,1746646241131,-450.0,0.00019997,2]
[360236244,1746646241141,-450.0,0.00019997,2]
[360236245,1746646241151,-450.0,0.00019997,2]
[360236246,1746646241160,-450.0,0.00019997,2]
[360236247,1746646241170,-450.0,0.00019997,2]
[360236248,1746646241180,-566.16,0.00019997,2]
[360236249,1746646241190,-450.0,0.00019997,2]
[360236250,1746646241201,-450.0,0.00019997,2]
[360236251,1746646241211,-450.0,0.00019997,2]
[360236252,1746646241221,-478.28,0.00019997,2]
[360236253,1746646241231,-450.0,0.00019997,2]
[360236254,1746646241242,-450.0,0.00019997,2]
[360236255,1746646241251,-450.0,0.00019997,2]
[360236256,1746646241262,-450.0,0.00019997,2]
[360236257,1746646241272,-450.0,0.00019997,2]
[360236258,1746646241282,-450.0,0.00019997,2]
[360236259,1746646241293,-450.0,0.00019997,2]
[360236260,1746646241304,-450.0,0.00019997,2]
[360236261,1746646241315,-450.0,0.00019997,2]
[360236262,1746646241326,-450.0,0.00019997,2]
[360236263,1746646241336,-450.0,0.00019997,2]
[360236264,1746646241346,-450.0,0.00019997,2]
[360236265,1746646241356,-585.350539,0.00019997,2]
[360236266,1746646241366,-456.6255072,0.00019997,2]
[360236267,1746646241375,-450.0,0.00019997,2]
[360236268,1746646241385,-450.0,0.00019997,2]
[360236269,1746646241395,-577.63,0.00019997,2]
[360236270,1746646241405,-450.0,0.00019997,2]
[360236271,1746646241414,-450.0,0.00019997,2]
[360236272,1746646241425,-450.0,0.00019997,2]
[360236273,1746646241434,-450.0,0.00019997,2]
[360236274,1746646241444,-450.0,0.00019997,2]
[360236275,1746646241455,-450.0,0.00019997,2]
[360236276,1746646241465,-450.0,0.00019997,2]
[360236277,1746646241475,-1166.227054,0.00019997,2]
[360236278,1746646241485,-450.0,0.00019997,2]
[360236279,1746646241498,-500.0,0.00019997,2]
[360236280,1746646241509,-450.0,0.00019997,2]
[360236281,1746646241519,-500.0,0.00019997,2]
[360236282,1746646241529,-168.7980622,0.00019997,2]
[360236283,1746646241539,-450.0,0.00019997,2]
[360236284,1746646241550,-450.0,0.00019997,2]
[360236285,1746646241559,-31521.61933,0.00019997,2]
[360236286,1746646241570,-450.0,0.00019997,2]
[360236287,1746646241580,-450.0,0.00019997,2]
[360236288,1746646241589,-450.0,0.00019997,2]
[360236289,1746646241599,-450.0,0.00019997,2]
[360236290,1746646241609,-450.0,0.00019997,2]
[360236291,1746646241618,-520.67705875,0.00019997,2]
[360236292,1746646241628,-450.0,0.00019997,2]
[360236293,1746646241638,-500.0,0.00019997,2]
[360236294,1746646241648,-450.0,0.00019997,2]
[360236295,1746646241658,-450.0,0.00019997,2]
[360236296,1746646241667,-450.0,0.00019997,2]
[360236297,1746646241677,-181.59,0.00019997,2]
[360236298,1746646241687,-450.0,0.00019998,2]
[360236299,1746646241697,-450.0,0.00019998,2]
[360236300,1746646241707,-450.0,0.00019998,2]
[360236301,1746646241718,-450.0,0.00019998,2]
[360236302,1746646241728,-450.0,0.00019998,2]
[360236303,1746646241737,-450.0,0.00019998,2]
[360236304,1746646241747,-450.0,0.00019998,2]
[360236305,1746646241756,-450.0,0.00019998,2]
[360236306,1746646241766,-450.0,0.00019998,2]
[360236307,1746646241776,-565.51,0.00019998,2]
[360236308,1746646241786,-450.0,0.00019998,2]
[360236309,1746646241796,-450.0,0.00019998,2]
[360236310,1746646241806,-450.0,0.00019998,2]
[360236311,1746646241816,-450.0,0.00019998,2]
[360236312,1746646241826,-450.0,0.00019998,2]
[360236313,1746646241835,-450.0,0.00019998,2]
[360236314,1746646241846,-450.0,0.00019998,2]
[360236315,1746646241856,-450.0,0.00019998,2]
[360236316,1746646241866,-450.0,0.00019998,2]
[360236317,1746646241876,-450.0,0.00019998,2]
[360236318,1746646241886,-450.0,0.00019998,2]
[360236319,1746646241896,-450.0,0.00019998,2]
[360236320,1746646241906,-450.0,0.00019998,2]
[360236321,1746646241916,-450.0,0.00019998,2]
[360236322,1746646241926,-450.0,0.00019998,2]
[360236323,1746646241937,-450.0,0.00019998,2]
[360236324,1746646241947,-450.0,0.00019998,2]
[360236325,1746646241957,-450.0,0.00019998,2]
[360236326,1746646241967,-450.0,0.00019998,2]
[360236327,1746646241977,-349.99,0.00019998,2]
[360236328,1746646241987,-450.0,0.00019998,2]
[360236329,1746646241997,-404.59944653,0.00019998,2]
[360236330,1746646242008,-450.0,0.00019998,2]
[360236331,1746646242018,-450.0,0.00019998,2]
[360236332,1746646242028,-450.0,0.00019998,2]
[360236333,1746646242038,-410.90400135,0.00019998,2]
[360236334,1746646242048,-450.0,0.00019998,2]
[360236335,1746646242058,-450.0,0.00019998,2]
[360236336,1746646242067,-450.0,0.00019998,2]
[360236337,1746646242077,-450.0,0.00019998,2]
[360236338,1746646242087,-450.0,0.00019998,2]
[360236339,1746646242096,-450.0,0.00019998,2]
[360236340,1746646242106,-303.8,0.00019998,2]
[360236341,1746646242116,-450.0,0.00019998,2]
[360236342,1746646242127,-450.0,0.00019998,2]
[360236343,1746646242137,-450.0,0.00019998,2]
[360236344,1746646242146,-450.0,0.00019998,2]
[360236345,1746646242156,-394.1875044,0.00019998,2]
[360236346,1746646242166,-450.0,0.00019998,2]
[360236347,1746646242176,-450.0,0.00019998,2]
[360236348,1746646242187,-450.0,0.00019998,2]
[360236349,1746646242196,-450.0,0.00019998,2]
[360236350,1746646242209,-599.48,0.00019998,2]
[360236351,1746646242218,-450.0,0.00019998,2]
[360236352,1746646242228,-450.0,0.00019998,2]
[360236353,1746646242238,-450.0,0.00019998,2]